fUSD/lending_fUSD_20250103
["ID","MTS","AMOUNT","RATE_DAILY","PERIOD"]
[347492386,1735873852779,-500.0,9.764e-05,2]
[347492388,1735873852788,-500.0,9.764e-05,2]
[347492390,1735873852798,-500.0,9.764e-05,2]
[347492392,1735873852807,-500.0,9.764e-05,2]
[347492394,1735873852816,-500.0,9.764e-05,2]
[347492396,1735873852825,-500.0,9.764e-05,2]
[347492398,1735873852835,-500.0,9.764e-05,2]
[347492400,1735873852845,-500.0,9.764e-05,2]
[347492402,1735873852854,-500.0,9.764e-05,2]
[347492404,1735873852864,-500.0,9.764e-05,2]
[347492406,1735873852874,-500.0,9.764e-05,2]
[347492408,1735873852883,-500.0,9.764e-05,2]
[347492410,1735873852892,-1365.45,9.764e-05,2]
[347492412,1735873852901,-902.94,9.764e-05,2]
[347492414,1735873852910,-500.0,9.764e-05,2]
[347492416,1735873852919,-500.0,9.764e-05,2]
[347492418,1735873852930,-500.0,9.764e-05,2]
[347492420,1735873852939,-500.0,9.764e-05,2]
[347492422,1735873852949,-500.0,9.764e-05,2]
[347492424,1735873852958,-500.0,9.764e-05,2]
[347492426,1735873852967,-500.0,9.764e-05,2]
[347492428,1735873852976,-1397.86,9.764e-05,2]
[347492430,1735873852985,-500.0,9.764e-05,2]
[347492432,1735873852994,-501.61973676,9.764e-05,2]
[347492434,1735873853002,-500.0,9.764e-05,2]
[347492436,1735873853011,-500.0,9.764e-05,2]
[347492438,1735873853021,-1385.97,9.764e-05,2]
[347492441,1735873853043,-500.0,9.764e-05,2]
[347492444,1735873853059,-500.0,9.764e-05,2]
[347492447,1735873853077,-1129.29,9.764e-05,2]
[347492449,1735873853094,-500.0,9.764e-05,2]
[347492452,1735873853109,-500.0,9.764e-05,2]
[347492455,1735873853126,-931.47,9.764e-05,2]
[347492458,1735873853145,-500.0,9.764e-05,2]
[347492461,1735873853163,-500.0,9.764e-05,2]
[347492464,1735873853180,-500.0,9.764e-05,2]
[347492466,1735873853198,-500.0,9.764e-05,2]
[347492469,1735873853214,-500.0,9.764e-05,2]
[347492472,1735873853232,-500.0,9.764e-05,2]
[347492474,1735873853245,-500.0,9.764e-05,2]
[347492477,1735873853264,-500.0,9.764e-05,2]
[347492480,1735873853276,-826.27,9.764e-05,2]
[347492483,1735873853290,-690.59,9.764e-05,2]
[347492485,1735873853309,-500.0,9.764e-05,2]
[347492487,1735873853321,-500.0,9.764e-05,2]
[347492490,1735873853335,-500.0,9.764e-05,2]
[347492492,1735873853350,-500.0,9.764e-05,2]
[347492496,1735873853371,-500.0,9.764e-05,2]
[347492498,1735873853386,-500.0,9.764e-05,2]
[347492501,1735873853400,-500.0,9.764e-05,2]
[347492503,1735873853414,-500.0,9.764e-05,2]
[347492506,1735873853429,-500.0,9.764e-05,2]
[347492508,1735873853443,-988.15,9.764e-05,2]
[347492511,1735873853458,-500.0,9.764e-05,2]
[347492513,1735873853472,-500.0,9.764e-05,2]
[347492516,1735873853487,-500.0,9.764e-05,2]
[347492518,1735873853501,-1412.16,9.764e-05,2]
[347492521,1735873853515,-500.0,9.764e-05,2]
[347492523,1735873853529,-500.0,9.764e-05,2]
[347492526,1735873853543,-500.0,9.764e-05,2]
[347492528,1735873853560,-1010.44,9.764e-05,2]
[347492531,1735873853574,-500.0,9.764e-05,2]
[347492533,1735873853588,-1762.83,9.764e-05,2]
[347492536,1735873853603,-642.63,9.764e-05,2]
[347492537,1735873853617,-500.0,9.764e-05,2]
[347492538,1735873853632,-500.0,9.764e-05,2]
[347492539,1735873853647,-499.42338369,9.764e-05,2]
[347492540,1735873853662,-500.0,9.764e-05,2]
[347492541,1735873853677,-500.0,9.764e-05,2]
[347492542,1735873853692,-3253.76,9.764e-05,2]
[347492543,1735873853707,-500.0,9.764e-05,2]
[347492544,1735873853722,-500.0,9.764e-05,2]
[347492546,1735873853736,-500.0,9.764e-05,2]
[347492549,1735873853751,-500.0,9.764e-05,2]
[347492551,1735873853765,-500.0,9.764e-05,2]
[347492554,1735873853779,-500.0,9.764e-05,2]
[347492556,1735873853793,-539.89946163,9.764e-05,2]
[347492559,1735873853808,-588.99,9.764e-05,2]
[347492562,1735873853823,-1581.24,9.764e-05,2]
[347492564,1735873853838,-500.0,9.764e-05,2]
[347492567,1735873853853,-730.91,9.764e-05,2]
[347492570,1735873853868,-500.0,9.764e-05,2]
[347492572,1735873853883,-500.0,9.764e-05,2]
[347492574,1735873853896,-549.61,9.764e-05,2]
[347492577,1735873853910,-500.0,9.764e-05,2]
[347492580,1735873853924,-603.87,9.764e-05,2]
[347492582,1735873853938,-1630.09,9.764e-05,2]
[347492584,1735873853952,-1059.81,9.764e-05,2]
[347492587,1735873853967,-500.0,9.764e-05,2]
[347492590,1735873853981,-500.0,9.764e-05,2]
[347492592,1735873853995,-1319.03,9.764e-05,2]
[347492594,1735873854010,-685.85,9.764e-05,2]
[347492597,1735873854023,-500.0,9.764e-05,2]
[347492599,1735873854037,-500.0,9.764e-05,2]
[347492602,1735873854053,-500.0,9.764e-05,2]
[347492604,1735873854068,-500.0,9.764e-05,2]
[347492607,1735873854082,-1001.61,9.764e-05,2]
[347492610,1735873854096,-500.0,9.764e-05,2]
[347492612,1735873854112,-1297.81,9.764e-05,2]
[347492615,1735873854125,-500.0,9.764e-05,2]
[347492617,1735873854139,-500.0,9.764e-05,2]
[347492620,1735873854156,-500.0,9.764e-05,2]
[347492622,1735873854171,-500.0,9.764e-05,2]
[347492625,1735873854185,-500.0,9.764e-05,2]
[347492627,1735873854200,-836.36,9.764e-05,2]
[347492630,1735873854213,-500.0,9.764e-05,2]
[347492632,1735873854228,-978.66,9.764e-05,2]
[347492635,1735873854243,-500.0,9.764e-05,2]
[347492637,1735873854258,-500.0,9.764e-05,2]
[347492640,1735873854273,-500.0,9.764e-05,2]
[347492643,1735873854287,-500.0,9.764e-05,2]
[347492645,1735873854302,-913.41,9.764e-05,2]
[347492648,1735873854316,-500.0,9.764e-05,2]
[347492650,1735873854332,-500.0,9.764e-05,2]
[347492653,1735873854346,-963.17,9.764e-05,2]
[347492655,1735873854359,-500.0,9.764e-05,2]
[347492658,1735873854374,-500.0,9.764e-05,2]
[347492660,1735873854388,-500.0,9.764e-05,2]
[347492663,1735873854403,-857.53,9.764e-05,2]
[347492665,1735873854417,-500.0,9.764e-05,2]
[347492668,1735873854431,-500.0,9.764e-05,2]
[347492671,1735873854447,-500.0,9.764e-05,2]
[347492673,1735873854462,-508.25195536,9.764e-05,2]
[347492676,1735873854476,-500.0,9.764e-05,2]
[347492678,1735873854491,-1340.59,9.764e-05,2]
[347492681,1735873854505,-500.0,9.764e-05,2]
[347492683,1735873854520,-500.0,9.764e-05,2]
[347492686,1735873854534,-1987.48,9.764e-05,2]
[347492688,1735873854548,-622.15,9.764e-05,2]
[347492691,1735873854563,-500.0,9.764e-05,2]
[347492693,1735873854577,-500.0,9.764e-05,2]
[347492696,1735873854591,-500.0,9.764e-05,2]
[347492698,1735873854604,-500.0,9.764e-05,2]
[347492701,1735873854618,-899.43,9.764e-05,2]
[347492703,1735873854631,-500.78449152,9.764e-05,2]
[347492705,1735873854645,-500.0,9.764e-05,2]
[347492708,1735873854659,-500.0,9.764e-05,2]
[347492710,1735873854673,-500.0,9.764e-05,2]
[347492712,1735873854688,-1019.12,9.764e-05,2]
[347492713,1735873854703,-500.0,9.764e-05,2]
[347492714,1735873854718,-500.0,9.764e-05,2]
[347492715,1735873854735,-500.0,9.764e-05,2]
[347492716,1735873854749,-500.0,9.764e-05,2]
[347492717,1735873854763,-500.0,9.764e-05,2]
[347492718,1735873854778,-500.0,9.764e-05,2]
[347492719,1735873854792,-500.0,9.764e-05,2]
[347492721,1735873854805,-500.0,9.764e-05,2]
[347492723,1735873854819,-500.0,9.764e-05,2]
[347492725,1735873854833,-500.0,9.764e-05,2]
[347492728,1735873854847,-500.0,9.764e-05,2]
[347492730,1735873854861,-500.0,9.764e-05,2]
[347492731,1735873854876,-500.0,9.764e-05,2]
[347492732,1735873854891,-500.0,9.764e-05,2]
[347492733,1735873854906,-500.0,9.764e-05,2]
[347492734,1735873854920,-500.0,9.764e-05,2]
[347492735,1735873854929,-570.91,9.764e-05,2]
[347492737,1735873854939,-500.0,9.764e-05,2]
[347492739,1735873854948,-500.0,9.764e-05,2]
[347492740,1735873854958,-1487.03,9.764e-05,2]
[347492742,1735873854967,-716.8,9.764e-05,2]
[347492744,1735873854976,-500.0,9.764e-05,2]
[347492745,1735873854987,-500.0,9.764e-05,2]
[347492747,1735873854996,-500.0,9.764e-05,2]
[347492748,1735873855005,-587.68,9.764e-05,2]
[347492750,1735873855015,-500.0,9.764e-05,2]
[347492752,1735873855024,-500.0,9.764e-05,2]
[347492754,1735873855033,-500.0,9.764e-05,2]
[347492756,1735873855043,-500.0,9.764e-05,2]
[347492758,1735873855054,-1207.93,9.764e-05,2]
[347492760,1735873855063,-582.97,9.764e-05,2]
[347492762,1735873855073,-930.15,9.764e-05,2]
[347492765,1735873855083,-771.99,9.764e-05,2]
[347492767,1735873855092,-513.57,9.764e-05,2]
[347492769,1735873855102,-500.0,9.764e-05,2]
[347492770,1735873855111,-500.0,9.764e-05,2]
[347492773,1735873855120,-619.21238808,9.764e-05,2]
[347492775,1735873855130,-500.0,9.764e-05,2]
[347492777,1735873855139,-500.0,9.764e-05,2]
[347492778,1735873855152,-500.0,9.764e-05,2]
[347492829,1735873855624,-500.0,9.764e-05,2]
[347492832,1735873855651,-8283.44,9.764e-05,2]
[347492837,1735873855681,-500.0,9.764e-05,2]
[347492840,1735873855710,-500.0,9.764e-05,2]
[347492842,1735873855719,-500.0,9.764e-05,2]
[347492844,1735873855728,-500.0,9.764e-05,2]
[347492847,1735873855738,-1000.84,9.764e-05,2]
[347492849,1735873855748,-500.0,9.764e-05,2]
[347492851,1735873855757,-988.13,9.764e-05,2]
[347492853,1735873855767,-500.0,9.764e-05,2]
[347492854,1735873855776,-500.0,9.764e-05,2]
[347492856,1735873855785,-500.0,9.764e-05,2]
[347492858,1735873855794,-500.0,9.764e-05,2]
[347492860,1735873855805,-8504.26,9.764e-05,2]
[347492862,1735873855814,-500.0,9.764e-05,2]
[347492864,1735873855824,-500.0,9.764e-05,2]
[347492866,1735873855833,-500.0,9.764e-05,2]
[347492868,1735873855843,-723.76,9.764e-05,2]
[347492870,1735873855852,-580.36,9.764e-05,2]
[347492872,1735873855862,-591.43,9.764e-05,2]
[347492874,1735873855871,-500.0,9.764e-05,2]
[347492876,1735873855880,-500.0,9.764e-05,2]
[347492878,1735873855890,-969.42,9.764e-05,2]
[347492880,1735873855899,-1422.59,9.764e-05,2]
[347492882,1735873855908,-964.62,9.764e-05,2]
[347492884,1735873855917,-500.0,9.764e-05,2]
[347492886,1735873855927,-712.11,9.764e-05,2]
[347492888,1735873855936,-500.0,9.764e-05,2]
[347492890,1735873855945,-500.0,9.764e-05,2]
[347492892,1735873855956,-500.0,9.764e-05,2]
[347492894,1735873855966,-500.0,9.764e-05,2]
[347492896,1735873855975,-500.0,9.764e-05,2]
[347492898,1735873855984,-500.0,9.764e-05,2]
[347492900,1735873855994,-500.0,9.764e-05,2]
[347492902,1735873856003,-689.74,9.764e-05,2]
[347492904,1735873856012,-500.0,9.764e-05,2]
[347492906,1735873856022,-500.0,9.764e-05,2]
[347492908,1735873856031,-1273.59,9.764e-05,2]
[347492910,1735873856040,-500.0,9.764e-05,2]
[347492912,1735873856050,-1147.15,9.764e-05,2]
[347492914,1735873856061,-500.0,9.764e-05,2]
[347492916,1735873856070,-500.0,9.764e-05,2]
[347492918,1735873856079,-5856.09,9.764e-05,2]
[347492919,1735873856088,-500.0,9.764e-05,2]
[347492920,1735873856098,-500.0,9.764e-05,2]
[347492921,1735873856107,-500.0,9.764e-05,2]
[347492922,1735873856116,-500.0,9.764e-05,2]
[347492923,1735873856126,-930.53,9.764e-05,2]
[347492924,1735873856135,-504.95081261,9.764e-05,2]
[347492925,1735873856147,-500.0,9.764e-05,2]
[347492926,1735873856157,-500.0,9.764e-05,2]
[347492927,1735873856167,-500.0,9.764e-05,2]
[347492928,1735873856176,-838.74,9.764e-05,2]
[347492929,1735873856187,-500.0,9.764e-05,2]
[347492930,1735873856196,-581.69,9.764e-05,2]
[347492932,1735873856205,-500.0,9.764e-05,2]
[347492934,1735873856214,-500.0,9.764e-05,2]
[347492936,1735873856224,-11770.68,9.764e-05,2]
[347492938,1735873856234,-500.0,9.764e-05,2]
[347492940,1735873856243,-500.0,9.764e-05,2]
[347492942,1735873856253,-500.0,9.764e-05,2]
[347492944,1735873856263,-301.53017367,9.764e-05,2]
[347492946,1735873856272,-207.96294637,9.764e-05,2]
[347492948,1735873856282,-500.0,9.764e-05,2]
[347492951,1735873856291,-500.0,9.764e-05,2]
[347492952,1735873856302,-1887.67,9.764e-05,2]
[347492955,1735873856312,-500.0,9.764e-05,2]
[347492957,1735873856322,-500.0,9.764e-05,2]
[347492958,1735873856332,-500.0,9.764e-05,2]
[347492961,1735873856341,-500.0,9.764e-05,2]
[347492963,1735873856350,-500.0,9.764e-05,2]
[347492965,1735873856360,-500.0,9.764e-05,2]
[347492967,1735873856369,-500.0,9.764e-05,2]
[347492969,1735873856378,-500.0,9.764e-05,2]
[347492971,1735873856387,-500.0,9.764e-05,2]
[347492973,1735873856396,-500.0,9.764e-05,2]
[347492975,1735873856406,-2907.54,9.764e-05,2]
[347492977,1735873856416,-3751.65,9.764e-05,2]
[347492978,1735873856425,-500.0,9.764e-05,2]
[347492980,1735873856435,-500.0,9.764e-05,2]
[347492982,1735873856444,-500.0,9.764e-05,2]
[347492984,1735873856453,-1206.16,9.764e-05,2]
[347492986,1735873856463,-500.0,9.764e-05,2]
[347492988,1735873856472,-633.60718522,9.764e-05,2]
[347492990,1735873856481,-500.0,9.764e-05,2]
[347492992,1735873856490,-500.0,9.764e-05,2]
[347492994,1735873856500,-500.36215106,9.764e-05,2]
[347492996,1735873856509,-500.0,9.764e-05,2]
[347492998,1735873856518,-500.0,9.764e-05,2]
[347493000,1735873856527,-500.0,9.764e-05,2]
[347493002,1735873856537,-749.22,9.764e-05,2]
[347493004,1735873856546,-500.0,9.764e-05,7]
[347493006,1735873856557,-500.0,9.764e-05,2]
[347493008,1735873856567,-500.0,9.764e-05,2]
[347493010,1735873856576,-500.0,9.764e-05,2]
[347493012,1735873856585,-500.33417735,9.764e-05,2]
[347493014,1735873856594,-1294.5,9.764e-05,2]
[347493016,1735873856604,-500.0,9.764e-05,2]
[347493018,1735873856614,-500.0,9.764e-05,2]
[347493020,1735873856623,-500.0,9.764e-05,2]
[347493022,1735873856633,-500.0,9.764e-05,2]
[347493024,1735873856642,-500.0,9.764e-05,2]
[347493026,1735873856651,-1220.52,9.764e-05,2]
[347493028,1735873856661,-500.0,9.764e-05,2]
[347493030,1735873856670,-500.0,9.764e-05,2]
[347493032,1735873856679,-1004.0,9.764e-05,2]
[347493034,1735873856688,-5805.7,9.764e-05,2]
[347493036,1735873856697,-499.27,9.764e-05,2]
[347493038,1735873856706,-500.0,9.765e-05,2]
[347493040,1735873856715,-500.0,9.765e-05,2]
[347493042,1735873856725,-500.0,9.765e-05,2]
[347493044,1735873856735,-500.0,9.765e-05,2]
[347493046,1735873856744,-500.0,9.765e-05,2]
[347493048,1735873856753,-500.0,9.765e-05,2]
[347493050,1735873856762,-500.0,9.765e-05,2]
[347493052,1735873856771,-500.0,9.765e-05,2]
[347493054,1735873856780,-500.0,9.765e-05,2]
[347493056,1735873856790,-500.0,9.765e-05,2]
[347493058,1735873856798,-500.0,9.765e-05,2]
[347493060,1735873856809,-500.0,9.765e-05,2]
[347493062,1735873856818,-500.0,9.765e-05,2]
[347493064,1735873856827,-500.0,9.765e-05,2]
[347493066,1735873856836,-500.0,9.765e-05,2]
[347493067,1735873856845,-500.0,9.765e-05,2]
[347493069,1735873856854,-500.0,9.765e-05,2]
[347493071,1735873856864,-500.0,9.765e-05,2]
[347493074,1735873856873,-502.41892427,9.765e-05,2]
[347493075,1735873856882,-500.0,9.765e-05,2]
[347493077,1735873856891,-500.0,9.765e-05,2]
[347493080,1735873856901,-500.0,9.765e-05,2]
[347493081,1735873856910,-500.0,9.765e-05,2]
[347493083,1735873856920,-500.0,9.765e-05,2]
[347493085,1735873856930,-336.47160999,9.765e-05,2]
[347493087,1735873856939,-500.0,9.765e-05,2]
[347493089,1735873856948,-500.0,9.765e-05,2]
[347493091,1735873856957,-500.0,9.765e-05,2]
[347493093,1735873856967,-500.0,9.765e-05,2]
[347493095,1735873856976,-500.0,9.765e-05,2]
[347493097,1735873856985,-500.0,9.765e-05,2]
[347493099,1735873856995,-500.0,9.765e-05,2]
[347493101,1735873857004,-500.0,9.765e-05,2]
[347493103,1735873857014,-500.0,9.765e-05,2]
[347493105,1735873857024,-500.0,9.765e-05,2]
[347493107,1735873857033,-514.49351992,9.765e-05,2]
[347493109,1735873857043,-500.0,9.765e-05,2]
[347493111,1735873857052,-500.0,9.765e-05,2]
[347493113,1735873857061,-412.94558403,9.765e-05,2]
[347493115,1735873857070,-225.16118858,9.765e-05,2]
[347493117,1735873857080,-500.0,9.765e-05,2]
[347493119,1735873857090,-500.0,9.765e-05,2]
[347493121,1735873857099,-500.0,9.765e-05,2]
[347493123,1735873857108,-500.0,9.765e-05,2]
[347493125,1735873857117,-500.0,9.765e-05,2]
[347493127,1735873857126,-500.0,9.765e-05,2]
[347493129,1735873857136,-500.0,9.765e-05,2]
[347493131,1735873857146,-500.0,9.765e-05,2]
[347493133,1735873857156,-500.0,9.765e-05,2]
[347493135,1735873857165,-500.0,9.765e-05,2]
[347493137,1735873857174,-411.01945474,9.765e-05,2]
[347493139,1735873857183,-500.0,9.765e-05,2]
[347493141,1735873857192,-500.0,9.765e-05,2]
[347493143,1735873857202,-500.0,9.765e-05,2]
[347493145,1735873857212,-500.0,9.765e-05,2]
[347493147,1735873857221,-500.0,9.765e-05,2]
[347493149,1735873857230,-561.24071975,9.765e-05,2]
[347493151,1735873857240,-500.0,9.765e-05,2]
[347493153,1735873857249,-500.0,9.765e-05,2]
[347493155,1735873857258,-500.0,9.765e-05,2]
[347493157,1735873857268,-500.0,9.765e-05,2]
[347493159,1735873857277,-500.0,9.765e-05,2]
[347493161,1735873857286,-500.0,9.765e-05,2]
[347493163,1735873857295,-500.0,9.765e-05,2]
[347493165,1735873857305,-500.0,9.765e-05,2]
[347493167,1735873857316,-500.0,9.765e-05,2]
[347493169,1735873857325,-500.0,9.765e-05,2]
[347493171,1735873857335,-500.0,9.765e-05,2]
[347493173,1735873857344,-500.0,9.765e-05,2]
[347493174,1735873857354,-500.0,9.765e-05,2]
[347493176,1735873857363,-500.0,9.765e-05,2]
[347493179,1735873857373,-500.0,9.765e-05,2]
[347493180,1735873857383,-500.0,9.765e-05,2]
[347493183,1735873857392,-500.0,9.765e-05,2]
[347493185,1735873857402,-500.0,9.765e-05,2]
[347493187,1735873857411,-500.0,9.765e-05,2]
[347493188,1735873857420,-500.0,9.765e-05,2]
[347493191,1735873857430,-500.0,9.765e-05,2]
[347493193,1735873857440,-500.0,9.765e-05,2]
[347493195,1735873857449,-500.0,9.765e-05,2]
[347493196,1735873857458,-500.0,9.765e-05,2]
[347493198,1735873857467,-500.0,9.765e-05,2]
[347493200,1735873857476,-500.0,9.765e-05,2]
[347493203,1735873857486,-338.49326874,9.765e-05,2]
[347493204,1735873857495,-500.0,9.765e-05,2]
[347493206,1735873857503,-372.52408704,9.765e-05,2]
[347493208,1735873857513,-500.0,9.765e-05,2]
[347493210,1735873857522,-212.31077285,9.765e-05,2]
[347493212,1735873857531,-500.0,9.765e-05,2]
[347493215,1735873857541,-500.0,9.765e-05,2]
[347493217,1735873857551,-500.0,9.765e-05,2]
[347493218,1735873857560,-500.0,9.765e-05,2]
[347493221,1735873857569,-500.0,9.765e-05,2]
[347493222,1735873857579,-500.0,9.765e-05,2]
[347493224,1735873857588,-500.0,9.765e-05,2]
[347493227,1735873857597,-500.0,9.765e-05,2]
[347493229,1735873857606,-500.0,9.765e-05,2]
[347493230,1735873857617,-500.0,9.765e-05,2]
[347493232,1735873857627,-500.0,9.765e-05,2]
[347493234,1735873857636,-499.8441463,9.765e-05,2]
[347493236,1735873857646,-500.0,9.765e-05,2]
[347493239,1735873857655,-500.0,9.765e-05,2]
[347493241,1735873857665,-673.74,9.765e-05,2]
[347493243,1735873857674,-673.74,9.765e-05,2]
[347493245,1735873857683,-500.0,9.765e-05,2]
[347493247,1735873857692,-696.27,9.765e-05,2]
[347493248,1735873857702,-696.27,9.765e-05,2]
[347493251,1735873857711,-35.24144762,9.765e-05,2]
[347493254,1735873857736,-464.75855238,9.765e-05,2]
[347493256,1735873857745,-37.01251462,9.765e-05,2]
[347493259,1735873857767,-209.95768826,9.765e-05,2]
[347493274,1735873857894,-253.02979712,9.765e-05,2]
[347493276,1735873857903,-57.60435733,9.765e-05,2]
[347493278,1735873857914,-335.34502768,9.765e-05,2]
[347493280,1735873857925,-107.05061499,9.765e-05,2]
[347493282,1735873857934,-160.42528146,9.765e-05,2]
[347493311,1735873880661,250.0,8.897e-05,2]
[347493312,1735873889768,50000.0,8e-05,2]
[347493313,1735873954139,50000.0,9e-05,2]
[347493314,1735874094232,1805.55,8.219e-05,2]
[347493315,1735874094858,167.64,8.855e-05,2]
[347493317,1735874147643,300.0,9e-05,2]
[347493318,1735874181017,1500.0,8.809e-05,2]
[347493319,1735874194081,300.0,9.1e-05,2]
[347493320,1735874231980,226.0,9.1e-05,2]
[347493321,1735874234531,226.0,9.1e-05,3]
[347493322,1735874244750,250.0,8.816e-05,2]
[347493323,1735874247917,226.57,9.1e-05,2]
[347493324,1735874260128,290.0,9.1e-05,3]
[347493325,1735874307183,631.39,8.88e-05,2]
[347493326,1735874336454,1000.0,8.804e-05,2]
[347493329,1735874367955,1004.17,8.81e-05,2]
[347493330,1735874368153,-500.0,0.00010038,7]
[347493331,1735874368248,-500.0,0.00010312,7]
[347493332,1735874385929,-500.0,0.00010586,7]
[347493333,1735874386090,-500.0,0.0001086,7]
[347493334,1735874404639,719.51,8.819e-05,2]
[347493335,1735874419126,-500.0,0.00011134,7]
[347493336,1735874419200,-500.0,0.00011408,7]
[347493337,1735874419268,-500.0,0.00011682,7]
[347493338,1735874419334,-323.89194359,0.00011956,7]
[347493339,1735874539219,353.77,8.811e-05,2]
[347493340,1735874754467,4611.68179364,6.94e-05,2]
[347493341,1735874796050,250.0,8.79e-05,2]
[347493357,1735874966918,1824.05,8.219e-05,2]
[347493362,1735875032245,-150.0,9.271e-05,2]
[347493363,1735875032255,-150.0,9.271e-05,2]
[347493365,1735875032264,-150.0,9.271e-05,2]
[347493367,1735875032274,-152.4046915,9.271e-05,2]
[347493369,1735875032283,-187.061,9.28e-05,2]
[347493371,1735875032292,-617.59543653,9.5e-05,2]
[347493373,1735875032304,-382.40456347,9.5e-05,2]
[347493375,1735875032314,-564.90559087,9.658e-05,2]
[347493376,1735875032325,-3508.71650913,9.658e-05,2]
[347493377,1735875032335,-922.912,9.729e-05,2]
[347493378,1735875032344,-27234.12030963,9.757e-05,2]
[347493379,1735875032356,-500.0,9.757e-05,2]
[347493380,1735875032365,-1594.08,9.757e-05,2]
[347493381,1735875032375,-9181.27,9.757e-05,2]
[347493382,1735875032384,-13554.94,9.757e-05,2]
[347493383,1735875032394,-7929.65,9.757e-05,2]
[347493384,1735875032404,-4974.77,9.757e-05,2]
[347493385,1735875032413,-7950.22,9.757e-05,2]
[347493386,1735875032423,-11905.77,9.757e-05,2]
[347493387,1735875032432,-4423.98,9.757e-05,2]
[347493388,1735875032441,-1639.11,9.757e-05,2]
[347493389,1735875032450,-3326.74,9.757e-05,2]
[347493390,1735875032460,-500.0,9.757e-05,2]
[347493391,1735875032469,-742.32,9.757e-05,2]
[347493392,1735875032478,-500.0,9.757e-05,2]
[347493393,1735875032488,-3927.16,9.757e-05,2]
[347493394,1735875032497,-4179.78,9.757e-05,2]
[347493395,1735875032506,-529.7853991,9.757e-05,2]
[347493396,1735875032515,-500.0,9.757e-05,2]
[347493397,1735875032525,-1106.41,9.757e-05,2]
[347493398,1735875032534,-500.0,9.757e-05,2]
[347493399,1735875032543,-6213.71,9.757e-05,2]
[347493400,1735875032552,-500.0,9.757e-05,2]
[347493401,1735875032562,-3083.61,9.757e-05,2]
[347493402,1735875032571,-500.0,9.757e-05,2]
[347493403,1735875032581,-4470.52,9.757e-05,2]
[347493404,1735875032590,-851.66,9.757e-05,2]
[347493405,1735875032600,-846.91,9.757e-05,2]
[347493406,1735875032610,-5725.06,9.757e-05,2]
[347493407,1735875032620,-1740.45,9.757e-05,2]
[347493408,1735875032630,-585.01,9.757e-05,2]
[347493409,1735875032639,-500.0,9.758e-05,2]
[347493410,1735875032648,-500.0,9.758e-05,2]
[347493411,1735875032658,-500.0,9.758e-05,2]
[347493412,1735875032667,-500.0,9.758e-05,2]
[347493413,1735875032677,-1055.76,9.758e-05,2]
[347493415,1735875032686,-500.0,9.758e-05,2]
[347493417,1735875032695,-500.0,9.758e-05,2]
[347493418,1735875032704,-1001.68,9.758e-05,2]
[347493420,1735875032714,-500.0,9.758e-05,2]
[347493422,1735875032723,-500.0,9.758e-05,2]
[347493424,1735875032732,-500.0,9.758e-05,2]
[347493426,1735875032741,-2672.1,9.758e-05,2]
[347493428,1735875032750,-500.0,9.758e-05,2]
[347493430,1735875032759,-500.0,9.758e-05,2]
[347493431,1735875032769,-500.0,9.758e-05,2]
[347493432,1735875032778,-883.37,9.758e-05,2]
[347493433,1735875032787,-1113.33,9.758e-05,2]
[347493434,1735875032797,-500.0,9.758e-05,2]
[347493435,1735875032806,-500.0,9.758e-05,2]
[347493436,1735875032815,-1594.0,9.758e-05,2]
[347493437,1735875032824,-500.0,9.758e-05,2]
[347493438,1735875032834,-500.0,9.758e-05,2]
[347493439,1735875032843,-3716.61,9.758e-05,2]
[347493440,1735875032854,-500.0,9.758e-05,2]
[347493441,1735875032863,-500.0,9.758e-05,2]
[347493442,1735875032873,-2544.05,9.758e-05,2]
[347493443,1735875032882,-500.0,9.758e-05,2]